lending/lending_fUSD_20251021
["ID","MTS","AMOUNT","RATE_DAILY","PERIOD"]
[391955930,1761028292845,-640.78865621,0.00034179,14]
[391955931,1761028292854,-4046.67,0.00034179,14]
[391955932,1761028292863,-4046.67,0.00034179,14]
[391955933,1761028292873,-4046.67,0.00034179,14]
[391955934,1761028292882,-4046.67,0.00034179,14]
[391955935,1761028292892,-4046.67,0.00034179,14]
[391955936,1761028292901,-4046.87264156,0.00034179,14]
[391955937,1761028292910,-500.0,0.00034179,14]
[391955938,1761028292920,-610.65339541,0.00034179,14]
[391955939,1761028292929,-500.0,0.00034179,14]
[391955940,1761028292938,-500.0,0.00034179,14]
[391955941,1761028292949,-500.0,0.00034179,14]
[391955942,1761028292958,-373.27442417,0.00034179,14]
[391955943,1761028292968,-694.74,0.00034179,14]
[391955944,1761028292977,-2388.27,0.00034179,14]
[391955945,1761028292987,-694.74,0.00034179,14]
[391955946,1761028292998,-2388.27,0.00034179,14]
[391955947,1761028293007,-694.74,0.00034179,14]
[391955948,1761028293016,-2388.27,0.00034179,14]
[391955949,1761028293026,-694.74,0.00034179,14]
[391955950,1761028293036,-2388.27,0.00034179,14]
[391955951,1761028293045,-694.74,0.00034179,14]
[391955952,1761028293054,-2388.27,0.00034179,14]
[391955953,1761028293064,-694.74,0.00034179,14]
[391955954,1761028293073,-2388.30764877,0.00034179,14]
[391955955,1761028293083,-694.96142609,0.00034179,14]
[391955956,1761028293092,-1000.0,0.00034179,30]
[391955957,1761028293102,-1000.0,0.00034179,30]
[391955958,1761028293110,-1000.0,0.00034179,30]
[391955959,1761028293120,-1000.0,0.00034179,30]
[391955960,1761028293129,-1000.0,0.00034179,30]
[391955961,1761028293138,-258.34411883,0.00034179,30]
[391955962,1761028293147,-1028.1,0.00034179,14]
[391955963,1761028293156,-1028.1,0.00034179,14]
[391955964,1761028293165,-1028.1,0.00034179,14]
[391955965,1761028293174,-1028.1,0.00034179,14]
[391955966,1761028293183,-1028.1,0.00034179,14]
[391955967,1761028293192,-1028.19568223,0.00034179,14]
[391955968,1761028293201,-500.29,0.00034179,14]
[391955969,1761028293209,-500.29,0.00034179,14]
[391955970,1761028293218,-500.29,0.00034179,14]
[391955971,1761028293226,-500.29,0.00034179,14]
[391955972,1761028293235,-500.29,0.00034179,14]
[391955973,1761028293245,-500.29,0.00034179,14]
[391955974,1761028293254,-500.5108,0.00034179,14]
[391955975,1761028293263,-734.56,0.00034179,14]
[391955976,1761028293271,-734.56,0.00034179,14]
[391955977,1761028293280,-734.56,0.00034179,14]
[391955978,1761028293289,-734.56,0.00034179,14]
[391955979,1761028293298,-734.56,0.00034179,14]
[391955980,1761028293307,-734.56,0.00034179,14]
[391955981,1761028293316,-734.74752089,0.00034179,14]
[391955982,1761028293325,-500.0,0.00034179,14]
[391955983,1761028293333,-500.0,0.00034179,14]
[391955984,1761028293342,-500.0,0.00034179,14]
[391955985,1761028293351,-516.69675288,0.00034179,14]
[391955986,1761028293359,-510.54076961,0.00034179,14]
[391955987,1761028293368,-1257.88,0.00034179,14]
[391955988,1761028293377,-1257.88,0.00034179,14]
[391955989,1761028293385,-1257.88,0.00034179,14]
[391955990,1761028293394,-1257.88,0.00034179,14]
[391955991,1761028293403,-1257.88,0.00034179,14]
[391955992,1761028293411,-1258.02818071,0.00034179,14]
[391955993,1761028293421,-611.63,0.00034179,14]
[391955994,1761028293434,-611.63,0.00034179,14]
[391955995,1761028293442,-611.63,0.00034179,14]
[391955996,1761028293451,-611.63,0.00034179,14]
[391955997,1761028293461,-611.63,0.00034179,14]
[391955998,1761028293470,-611.63,0.00034179,14]
[391955999,1761028293478,-611.8,0.00034179,14]
[391956000,1761028293487,-518.37,0.00034179,14]
[391956001,1761028293495,-518.37,0.00034179,14]
[391956002,1761028293506,-518.37,0.00034179,14]
[391956003,1761028293625,-518.37,0.00034179,14]
[391956004,1761028293634,-518.37,0.00034179,14]
[391956005,1761028293643,-518.37,0.00034179,14]
[391956006,1761028293652,-518.54791431,0.00034179,14]
[391956007,1761028293661,-500.0,0.00034179,14]
[391956008,1761028293670,-500.0,0.00034179,14]
[391956009,1761028293679,-500.0,0.00034179,14]
[391956010,1761028293688,-561.71218364,0.00034179,14]
[391956011,1761028293697,-656.24,0.00034179,14]
[391956012,1761028293706,-656.24,0.00034179,14]
[391956013,1761028293714,-656.24,0.00034179,14]
[391956014,1761028293723,-656.24,0.00034179,14]
[391956015,1761028293732,-656.24,0.00034179,14]
[391956016,1761028293741,-656.24,0.00034179,14]
[391956017,1761028293751,-656.39669773,0.00034179,14]
[391956018,1761028293760,-519.19037492,0.00034179,14]
[391956019,1761028293771,-721.91,0.00034179,14]
[391956020,1761028293780,-721.91,0.00034179,14]
[391956021,1761028293790,-721.91,0.00034179,14]
[391956022,1761028293799,-721.91,0.00034179,14]
[391956023,1761028293809,-721.91,0.00034179,14]
[391956024,1761028293819,-721.91,0.00034179,14]
[391956025,1761028293829,-722.04478589,0.00034179,14]
[391956026,1761028293838,-1158.53,0.00034179,14]
[391956027,1761028293847,-1158.53,0.00034179,14]
[391956028,1761028293858,-1158.53,0.00034179,14]
[391956029,1761028293867,-1158.53,0.00034179,14]
[391956030,1761028293877,-1158.53,0.00034179,14]
[391956031,1761028293886,-1158.53,0.00034179,14]
[391956032,1761028293895,-1158.76182059,0.00034179,14]
[391956033,1761028293905,-500.0,0.00034179,14]
[391956034,1761028293914,-500.0,0.00034179,14]
[391956035,1761028293923,-500.0,0.00034179,14]
[391956036,1761028293932,-500.0,0.00034179,14]
[391956037,1761028293941,-500.0,0.00034179,14]
[391956038,1761028293950,-500.0,0.00034179,14]
[391956039,1761028293960,-363.54457216,0.00034179,14]
[391956040,1761028293969,-1000.0,0.0003418,7]
[391956041,1761028293978,-3716265.99216805,0.0003418,30]
[391956042,1761028293987,-105825.1073795,0.0003418,2]
[391956043,1761028293997,-609.07984092,0.00034189,3]
[391956044,1761028294007,-863.780025,0.000342,30]
[391956045,1761028294016,-197.085649,0.000342,30]
[391956046,1761028294026,-713.007043,0.000342,30]
[391956047,1761028294035,-196.757958,0.000342,30]
[391956048,1761028294045,-2561.684748,0.000342,30]
[391956049,1761028294055,-172.96018878,0.00034202,2]
[391956050,1761028294064,-2500.0,0.00034211,7]
[391956051,1761028294073,-863.780025,0.00034218,30]
[391956052,1761028294083,-197.085649,0.00034218,30]
[391956053,1761028294092,-713.007043,0.00034218,30]
[391956054,1761028294101,-196.757958,0.00034218,30]
[391956055,1761028294110,-2561.684748,0.00034218,30]
[391956056,1761028294119,-2500.0,0.0003422,7]
[391956057,1761028294129,-2500.0,0.00034229,7]
[391956058,1761028294139,-863.780025,0.00034237,30]
[391956059,1761028294148,-197.085649,0.00034237,30]
[391956060,1761028294158,-713.007043,0.00034237,30]
[391956061,1761028294167,-196.757958,0.00034237,30]
[391956062,1761028294177,-2561.684748,0.00034237,30]
[391956063,1761028294186,-2500.0,0.00034238,7]
[391956064,1761028294196,-150.0,0.00034247,2]
[391956065,1761028294206,-168.4,0.00034247,2]
[391956066,1761028294215,-414.05,0.00034247,2]
[391956067,1761028294225,-437.95,0.00034247,2]
[391956068,1761028294235,-175.46,0.00034247,2]
[391956069,1761028294245,-167.93,0.00034247,2]
[391956070,1761028294255,-150.0,0.00034247,2]
[391956071,1761028294264,-414.05,0.00034247,2]
[391956072,1761028294274,-414.05,0.00034247,2]
[391956073,1761028294283,-353.93,0.00034247,2]
[391956074,1761028294293,-2500.0,0.00034247,7]
[391956075,1761028294302,-2500.0,0.00034247,7]
[391956076,1761028294312,-27298.05318173,0.00034254,2]
[391956077,1761028294965,-500.0,0.00032876,14]
[391956078,1761028294975,-9756.80907735,0.00034254,2]
[391956079,1761028294987,-497.80833564,0.00034254,2]
[391956080,1761028295001,-325.42295744,0.00034254,2]
[391956081,1761028295021,-555.57899979,0.00034254,2]
[391956082,1761028295032,-1083.25,0.00034254,2]
[391956083,1761028295500,-151.0,0.00014996,2]
[391956084,1761028295510,-151.0,0.00014996,2]
[391956085,1761028295520,-151.0,0.00015,2]
[391956086,1761028295530,-141.94752473,0.00015,2]
[391956087,1761028295559,-151.0,0.00014996,2]
[391956088,1761028295568,-9.05247527,0.00015,2]
[391956089,1761028295579,-151.0,0.00015,2]
[391956090,1761028295589,-151.0,0.00015,2]
[391956091,1761028295598,-151.0,0.000161,2]
[391956092,1761028295608,-151.0,0.000161,2]
[391956093,1761028295617,-151.0,0.00017106,2]
[391956094,1761028295627,-151.0,0.00017106,2]
[391956095,1761028295637,-151.0,0.00023288,7]
[391956096,1761028295646,-151.0,0.00023288,7]
[391956097,1761028295656,-151.0,0.00023288,7]
[391956098,1761028295666,-151.0,0.00023288,7]
[391956099,1761028295676,-151.0,0.00023288,7]
[391956100,1761028295685,-151.0,0.00023288,7]
[391956101,1761028295695,-902.0,0.00024336,2]
[391956102,1761028295705,-500.0,0.00032999,14]
[391956103,1761028295715,-500.0,0.00034079,14]
[391956104,1761028295724,-500.0,0.00034178,14]
[391956105,1761028295736,-450.16143305,0.00034179,14]
[391956106,1761028370409,-500.0,0.0001446,2]
[391956107,1761028370432,-264.53,0.0001449,2]
[391956108,1761028370460,-250.0,0.00014569,2]
[391956109,1761028370483,-492.44882956,0.00014569,2]
[391956110,1761028370505,-300.0,0.00014647,2]
[391956111,1761028370529,-1200.0,0.00014647,2]
[391956112,1761028370551,-5000.0,0.00014896,2]
[391956113,1761028370575,-500.0,0.00014973,2]
[391956114,1761028370599,-151.0,0.00014996,2]
[391956115,1761028370622,-151.0,0.00015,2]
[391956116,1761028370644,-151.0,0.00015,2]
[391956117,1761028370668,-40.02117044,0.00015,2]
[391956118,1761028475569,-5000.0,0.00014896,2]
[391956123,1761028809847,-500.0,0.00014649,2]
[391956124,1761028809870,-500.0,0.00014995,2]
[391956125,1761028809894,-500.0,0.00014999,2]
[391956126,1761028809918,-527.94408683,0.00014999,2]
[391956127,1761028809943,-272.05591317,0.00015,2]
[391956128,1761028839211,220.53,0.00013699,2]
[391956151,1761029431817,-35.34625683,0.00015,2]
[391956152,1761029431827,-151.0,0.0001649,2]
[391956153,1761029431837,-96.05313764,0.0001649,2]
[391956154,1761029431941,-54.94686236,0.0001649,2]
[391956155,1761029431951,-255.84379406,0.0001649,2]
[391956156,1761029431961,-151.0,0.0001649,2]
[391956157,1761029431971,-299.93729149,0.0001649,2]
[391956158,1761029431980,-609.0,0.00016498,2]
[391956159,1761029431990,-300.0,0.00016498,2]
[391956160,1761029432000,-300.0,0.00016498,2]
[391956161,1761029432009,-1200.0,0.00016498,2]
[391956162,1761029432020,-287.0,0.00016499,2]
[391956163,1761029432029,-192.79377433,0.000165,2]
[391956164,1761029432040,-500.0,0.000165,2]
[391956165,1761029432049,-500.0,0.000165,2]
[391956166,1761029432063,-500.0,0.000165,2]
[391956167,1761029432073,-193.35913055,0.000165,2]
[391956168,1761029432082,-500.0,0.000165,2]
[391956170,1761029432092,-2213.34378225,0.000165,2]
[391956172,1761029432102,-300.0,0.000165,2]
[391956174,1761029432112,-243.35913055,0.000165,2]
[391956176,1761029432121,-301.12620425,0.000165,2]
[391956177,1761029432131,-306.64086945,0.000165,2]
[391956180,1761029432141,-500.0,0.000165,2]
[391956182,1761029432150,-445.86977539,0.000165,2]
[391956184,1761029432160,-151.1,0.000165,2]
[391956186,1761029432169,-300.0,0.00018029,2]
[391956187,1761029432179,-1200.0,0.00018119,2]
[391956190,1761029432188,-250.0,0.0001982,2]
[391956192,1761029432197,-307.40217,0.00019825,2]
[391956194,1761029432207,-220.53,0.00020187,2]
[391956196,1761029432217,-307.40217,0.0002465,2]
[391956198,1761029432227,-168.96,0.0002524,2]
[391956199,1761029432237,-605.0,0.00026337,2]
[391956203,1761029432247,-1589.0,0.00026337,2]
[391956205,1761029432258,-220.53,0.00026676,2]
[391956209,1761029432267,-307.40217,0.00028051,3]
[391956213,1761029432276,-739.113,0.00028089,18]
[391956217,1761029432286,-250.0,0.00029219,2]
[391956220,1761029432295,-500.0,0.00029394,7]
[391956223,1761029432305,-158.446009,0.00029475,2]
[391956225,1761029432315,-307.40217,0.00029475,2]
[391956227,1761029432325,-157.050913,0.00029475,2]
[391956229,1761029432336,-307.40217,0.00029614,3]
[391956230,1761029432347,-750.64377328,0.00029712,2]
[391956231,1761029432357,-666.0,0.00031101,3]
[391956232,1761029432368,-307.40217,0.00031176,3]
[391956233,1761029432378,-157.050913,0.00031176,3]
[391956234,1761029432387,-5000.0,0.00031248,2]
[391956235,1761029432397,-200.0,0.0003138,2]
[391956236,1761029432408,-3707.85,0.00031439,2]
[391956237,1761029432418,-1051.41498859,0.00032,120]
[391956238,1761029432428,-176.83312215,0.00032,120]
[391956239,1761029432439,-170.16312638,0.00032,120]
[391956240,1761029432448,-204.72354311,0.00032,120]
[391956241,1761029432459,-183.141745,0.00032,120]
[391956242,1761029432468,-209.24418722,0.00032,120]
[391956243,1761029432478,-201.47583313,0.00032,120]
[391956244,1761029432488,-268.06875356,0.00032,120]
[391956245,1761029432498,-370.04,0.00032148,2]
[391956246,1761029432508,-156.99,0.00032435,30]
[391956247,1761029432519,-307.40217,0.000325,7]
[391956248,1761029432529,-200.0,0.00032542,2]
[391956249,1761029432539,-200.0,0.00032562,2]
[391956250,1761029432549,-200.0,0.00032562,2]
[391956251,1761029432559,-200.0,0.00032562,2]
[391956252,1761029432568,-200.0,0.00032562,2]
[391956253,1761029432578,-200.0,0.00032563,2]
[391956254,1761029432588,-200.0,0.00032563,2]
[391956255,1761029432598,-200.0,0.00032566,2]
[391956257,1761029432608,-500.0,0.0003261,7]
[391956259,1761029432618,-800.0,0.0003261,7]
[391956261,1761029432627,-158.446009,0.00032738,3]
[391956263,1761029432637,-307.40217,0.00032738,3]
[391956265,1761029432647,-157.050913,0.00032738,3]
[391956300,1761029432953,-15085.53017961,0.00032876,2]
[391956650,1761029437700,-151.0,0.00017078,2]
[391956651,1761029437714,-2548.0,0.00026337,2]
[391956652,1761029437726,-607.25658004,0.00029337,2]
[391956653,1761029437737,-1940.74341996,0.00029337,2]
[391956654,1761029437747,-2548.0,0.00032337,2]
[391956655,1761029437757,-5172.79313129,0.00032876,2]
[391956656,1761029437767,-352.37444301,0.00032876,14]
[391956657,1761029437777,-237.6,0.00032876,7]
[391956658,1761029437788,-524.22,0.00032876,14]
[391956659,1761029437797,-524.22,0.00032876,14]
[391956660,1761029437807,-524.22,0.00032876,14]
[391956661,1761029437816,-524.22,0.00032876,14]
[391956662,1761029437826,-524.22,0.00032876,14]
[391956663,1761029437835,-524.22,0.00032876,14]
[391956664,1761029437844,-524.22,0.00032876,14]
[391956665,1761029437853,-524.22,0.00032876,14]
[391956666,1761029437862,-524.22,0.00032876,14]
[391956667,1761029437873,-524.22,0.00032876,14]
[391956668,1761029437882,-524.22,0.00032876,14]
[391956669,1761029437892,-524.22,0.00032876,14]
[391956670,1761029437901,-524.22,0.00032876,14]
[391956671,1761029437912,-524.22,0.00032876,14]
[391956672,1761029437921,-524.22,0.00032876,14]
[391956673,1761029437931,-524.22,0.00032876,14]
[391956674,1761029437940,-513.40438221,0.00032876,14]
[391956675,1761029437949,-512.60615789,0.00032876,14]
[391956676,1761029437958,-500.0,0.00032876,14]
[391956678,1761029437967,-512.89828881,0.00032876,14]
[391956679,1761029437976,-201.01551145,0.00032876,14]
[391956681,1761029437986,-500.0,0.00032876,14]
[391956683,1761029437995,-500.0,0.00032876,14]
[391956685,1761029438006,-503.03487576,0.00032876,14]
[391956688,1761029438016,-500.0,0.00032876,14]
[391956690,1761029438026,-556.06613604,0.00032876,14]
[391956692,1761029438036,-638.33313298,0.00032876,14]
[391956694,1761029438045,-500.0,0.00032876,14]
[391956696,1761029438055,-500.0,0.00032876,14]
[391956698,1761029438065,-500.0,0.00032876,14]
[391956699,1761029438075,-500.0,0.00032876,14]
[391956701,1761029438084,-391.64776331,0.00032876,14]
[391956703,1761029438094,-510.45239313,0.00032876,14]
[391956705,1761029438103,-518.0183604,0.00032876,14]
[391956707,1761029438113,-307.40217,0.00032948,7]
[391956709,1761029438123,-524.22,0.00032997,14]
[391956711,1761029438132,-343.08769505,0.00032999,7]
[391956713,1761029438141,-247.85575287,0.00032999,7]
[391956715,1761029438151,-151.08764944,0.00032999,7]
[391956717,1761029438160,-500.0,0.00032999,7]
[391956719,1761029438169,-230.29598299,0.00032999,7]
[391956721,1761029438178,-500.0,0.00032999,7]
[391956723,1761029438187,-500.0,0.00032999,7]
[391956724,1761029438196,-500.0,0.00032999,7]
[391956725,1761029438205,-500.0,0.00032999,7]
[391956726,1761029438215,-500.0,0.00032999,7]
[391956727,1761029438224,-500.0,0.00032999,7]
[391956728,1761029438233,-500.0,0.00032999,7]
[391956729,1761029438242,-500.0,0.00032999,7]
[391956730,1761029438253,-500.0,0.00032999,7]
[391956731,1761029438263,-500.0,0.00032999,7]
[391956732,1761029438272,-500.0,0.00032999,7]
[391956733,1761029438281,-500.0,0.00032999,7]
[391956734,1761029438290,-500.0,0.00032999,7]
[391956735,1761029438299,-369.31806201,0.00032999,7]
[391956736,1761029438308,-500.0,0.00032999,7]
[391956737,1761029438317,-500.0,0.00032999,7]
[391956738,1761029438326,-500.0,0.00032999,7]
[391956739,1761029438335,-500.0,0.00032999,7]
[391956740,1761029438343,-500.0,0.00032999,7]
[391956741,1761029438352,-500.0,0.00032999,7]
[391956742,1761029438361,-500.0,0.00032999,7]
[391956743,1761029438371,-1051.41498859,0.00033,120]
[391956745,1761029438380,-837.19868224,0.00033,2]
[391956747,1761029438392,-739.528595,0.00033,2]
[391956749,1761029438404,-423.25272276,0.00033,2]
[391956751,1761029438413,-204.72354311,0.00033,120]
[391956753,1761029438423,-1275.50963413,0.00033,2]
[391956756,1761029438434,-724.48036587,0.00033,2]
[391956758,1761029438443,-209.24418722,0.00033,120]
[391956760,1761029438452,-1796.19,0.00033,2]
[391956762,1761029438461,-237.6,0.0003315,7]
[391956763,1761029438471,-220.53,0.00033165,2]
[391956765,1761029438480,-2575.83564763,0.00033226,2]
[391956767,1761029438490,-167.34157209,0.00033233,30]
[391956769,1761029438499,-151.31287581,0.00033315,2]
[391956771,1761029438510,-151.60181224,0.00033315,2]
[391956773,1761029438520,-150.89952022,0.00033315,2]
[391956775,1761029438530,-150.0,0.00033315,2]
[391956778,1761029438539,-150.0,0.00033315,2]
[391956779,1761029438548,-263.93004083,0.00033315,2]
[391956781,1761029438558,-150.0,0.00033315,2]
[391956783,1761029438567,-152.41308044,0.00033315,2]
[391956786,1761029438577,-150.0,0.00033315,2]
[391956787,1761029438586,-252.05028089,0.00033315,2]
[391956789,1761029438595,-153.46796913,0.00033315,2]
[391956791,1761029438604,-150.62871814,0.00033315,2]
[391956793,1761029438614,-150.0,0.00033315,2]
[391956795,1761029438623,-150.0,0.00033315,2]
[391956797,1761029438631,-153.4543318,0.00033315,2]
[391956799,1761029438640,-152.65017404,0.00033315,2]
[391956801,1761029438650,-150.0,0.00033315,2]
[391956803,1761029438659,-150.0,0.00033315,2]
[391956805,1761029438668,-150.0,0.00033315,2]
[391956807,1761029438677,-150.0,0.00033315,2]
[391956809,1761029438686,-150.25445312,0.00033315,2]
[391956811,1761029438696,-500.0,0.00033315,2]
[391956813,1761029438705,-123.43730758,0.00033315,2]
[391956815,1761029438720,-376.56269242,0.00033315,2]
[391956817,1761029438729,-500.0,0.00033315,2]
[391956819,1761029438738,-1.49558778,0.00033315,2]
[391956882,1761029439821,-498.50441222,0.00033315,2]
[391956883,1761029439832,-625.6557835,0.00033315,2]
[391956884,1761029439841,-150.68663309,0.00033315,2]
[391956885,1761029439851,-150.0,0.00033315,2]
[391956886,1761029439861,-150.88107471,0.00033315,2]
[391956887,1761029439870,-150.0,0.00033315,2]
[391956888,1761029439880,-150.0,0.00033315,2]
[391956889,1761029439889,-500.0,0.00033315,2]
[391956890,1761029439898,-152.22862341,0.00033315,2]
[391956891,1761029439908,-150.0,0.00033315,2]
[391956892,1761029439917,-152.42334983,0.00033315,2]
[391956893,1761029439926,-150.0,0.00033315,2]
[391956894,1761029439936,-150.0,0.00033315,2]
[391956895,1761029439945,-113.82012324,0.00033315,2]
[391956896,1761029439960,-36.17987676,0.00033315,2]
[391956897,1761029439969,-150.0,0.00033315,2]
[391956898,1761029439979,-150.0,0.00033315,2]
[391956899,1761029439988,-150.0,0.00033315,2]
[391956900,1761029439998,-150.0,0.00033315,2]
[391956901,1761029440007,-150.0,0.00033315,2]
[391956902,1761029440017,-150.0,0.00033315,2]
[391956903,1761029440027,-150.0,0.0003337,2]
[391956904,1761029440036,-150.0,0.0003337,2]
[391956905,1761029440046,-150.0,0.0003337,2]
[391956906,1761029440056,-150.0,0.0003337,2]
[391956907,1761029440065,-86.82012324,0.0003337,2]
[391956908,1761029440085,-63.17987676,0.0003337,2]
[391956909,1761029440095,-500.0,0.0003337,2]
[391956910,1761029440104,-150.0,0.0003337,2]
[391956911,1761029440114,-150.0,0.0003337,2]
[391956912,1761029440123,-150.0,0.0003337,2]
[391956913,1761029440133,-150.0,0.0003337,2]
[391956914,1761029440142,-150.0,0.0003337,2]
[391956915,1761029440151,-307.40217,0.00033396,7]
[391956916,1761029440160,-237.6,0.00033424,7]
[391956917,1761029440170,-200.0,0.00033425,2]
[391956918,1761029440179,-200.0,0.00033425,2]
[391956919,1761029440188,-200.0,0.00033425,2]
[391956920,1761029440198,-205.25121441,0.00033425,2]
[391956921,1761029440207,-200.0,0.00033425,2]
[391956922,1761029440217,-500.0,0.00033425,2]
[391956923,1761029440226,-200.0,0.00033425,2]
[391956924,1761029440235,-200.0,0.00033425,2]
[391956925,1761029440244,-200.0,0.00033425,2]
[391956926,1761029440254,-200.0,0.00033425,2]
[391956927,1761029440263,-200.0,0.00033425,2]
[391956928,1761029440273,-800.0,0.00033432,7]
[391956929,1761029440282,-150.0,0.00033448,3]
[391956930,1761029440291,-237.6,0.00033698,7]
[391956931,1761029440301,-150.0,0.00033815,3]
[391956932,1761029440310,-158.446009,0.00033845,7]
[391956933,1761029440319,-307.40217,0.00033845,7]
[391956934,1761029440329,-157.050913,0.00033845,7]
[391956935,1761029440338,-1051.41498859,0.000339,120]
[391956936,1761029440347,-500.0,0.00033934,120]
[391956937,1761029440356,-1952.72511053,0.00033954,2]
[391956938,1761029440366,-237.6,0.00033972,7]
[391956939,1761029440376,-200.0,0.0003398,10]
[391956940,1761029440385,-652.94479872,0.00033997,2]
[391956941,1761029440396,-1299.78031175,0.00033997,2]
[391956942,1761029440405,-15000.0,0.00034,2]
[391956943,1761029440415,-8393.0,0.00034,5]
[391956944,1761029440424,-1952.72511047,0.00034039,2]
[391956945,1761029440433,-524.22,0.00034078,14]
[391956946,1761029440443,-1952.72511047,0.00034082,2]
[391956947,1761029440452,-1952.72511047,0.00034125,2]
[391956948,1761029440461,-837.5838117,0.00034148,2]
[391956949,1761029440471,-5000.0,0.00034154,2]
[391956950,1761029440480,-55555.0,0.00034154,3]
[391956951,1761029440489,-1108.0,0.00034164,2]
[391956952,1761029440499,-1952.72511047,0.00034167,2]
[391956953,1761029440508,-524.22,0.00034169,14]
[391956954,1761029440518,-524.22,0.00034178,14]
[391956955,1761029440528,-524.22,0.00034178,14]
[391956956,1761029440537,-524.22,0.00034178,14]
[391956957,1761029440547,-524.22,0.00034178,14]
[391956958,1761029440556,-524.41985056,0.00034178,14]
[391956959,1761029440565,-237.53316,0.00034179,2]
[391956960,1761029440574,-307.40217,0.0003418,30]
[391956961,1761029440583,-307.40217,0.0003418,31]
[391956962,1761029440592,-186.02211014,0.00034192,15]
[391956963,1761029440601,-150.48961228,0.00034193,2]
[391956964,1761029440611,-1167.66702166,0.000342,6]
[391956965,1761029440620,-153.66248432,0.00034202,2]
[391956966,1761029440629,-363.12841816,0.00034202,2]
[391956967,1761029440638,-400.42057629,0.00034202,2]
[391956968,1761029440648,-200.47737515,0.00034202,6]
[391956969,1761029440657,-150.48961228,0.00034209,2]
[391956970,1761029440666,-1952.72511047,0.0003421,2]
[391956971,1761029440676,-150.48961228,0.00034225,2]
[391956972,1761029440685,-150.48961228,0.00034241,2]
[391956973,1761029440695,-277.35679052,0.00034246,7]
[391956974,1761029440703,-277.35679052,0.00034246,7]
[391956975,1761029440717,-500.0,0.00034252,14]
[391956976,1761029440727,-500.0,0.00034252,14]
[391956977,1761029440736,-2500.0,0.00034252,7]
[391956978,1761029440745,-2500.0,0.00034252,7]
[391956979,1761029440757,-1952.72511047,0.00034253,2]
[391956980,1761029440767,-500.0,0.00034254,7]
[391956981,1761029440776,-800.0,0.00034254,7]
[391956982,1761029440787,-152.32067695,0.00034254,2]
[391956983,1761029440796,-151.0,0.00034254,2]
[391956984,1761029440806,-500.0,0.00034254,14]
[391956985,1761029440815,-500.0,0.00034254,14]
[391956986,1761029440825,-500.0,0.00034254,14]
[391956987,1761029440835,-504.94532562,0.00034254,14]
[391956988,1761029440844,-500.0,0.00034254,14]
[391956989,1761029440853,-531.56787894,0.00034255,2]
[391956990,1761029440863,-2500.0,0.00034255,7]
[391956991,1761029440872,-150.48961228,0.00034257,2]
[391956992,1761029440882,-2500.0,0.00034261,7]
[391956993,1761029440891,-2500.0,0.00034261,7]
[391956994,1761029440900,-500.0,0.00034263,14]
[391956995,1761029440910,-501.98336906,0.00034263,14]
[391956996,1761029440919,-506.24111647,0.00034263,14]
[391956997,1761029440929,-368.5071794,0.00034263,14]
[391956998,1761029440939,-500.0,0.00034263,14]
[391956999,1761029440948,-500.0,0.00034263,14]
[391957000,1761029440958,-500.0,0.00034263,14]
[391957001,1761029440968,-500.0,0.00034263,14]